[Event "NOR-ch Various 2019"]
[Site "Larvik"]
[Date "2019.07.10"]
[Round "6.28"]
[White "Brodtkorb, Lars Johan"]
[Black "Hobber, Anders"]
[Result "0-1"]
[ECO "D13"]
[WhiteElo "2077"]
[BlackElo "2294"]
[Annotator "NA"]
[PlyCount "94"]
[EventDate "2019.07.06"]
[EventType "swiss"]
[EventCountry "NOR"]
[SourceTitle "playchess.com"]
[Source "ChessBase"]
[SourceQuality "1"]
[TimeControl "40/5400+30:1800+30"]

1. d4 {[%emt 0:01:27]} d5 {[%emt 0:00:00]} 2. c4 {[%emt 0:00:06]} c6 {[%emt 0:00:04]} 3. cxd5 {[%emt 0:01:25]} cxd5 {[%emt 0:00:08]} 4. Bf4 {[%emt 0:00:08]} Nc6 {[%emt 0:01:22]} 5. e3 {[%emt 0:01:54]} Nf6 {[%emt 0:00:42]} 6. Nc3 {[%emt 0:00:15]} e6 {[%emt 0:05:48]} 7. Bd3 {[%emt 0:01:20]} Be7 {[%emt 0:01:31]} 8. h3 {[%emt 0:01:54]} O-O {[%emt 0:01:23]} 9. Nf3 {[%emt 0:01:22]} Bd7 {[%emt 0:03:34]} 10. O-O {[%emt 0:00:17]} Rc8 {[%emt 0:07:28]} 11. Qe2 {[%emt 0:02:08]} Qb6 {[%emt 0:08:27]} 12. Rfc1 {[%emt 0:00:51]} Rfd8 {[%emt 0:05:18]} 13. Qd2 {[%emt 0:04:25]} Na5 {[%emt 0:02:31]} 14. Ne5 {[%emt 0:00:19]} Be8 {[%emt 0:06:35]} 15. Qe2 {[%emt 0:02:14]} h6 {[%emt 0:18:10]} 16. g4 {[%emt 0:22:06]} Nd7 {[%emt 0:11:54]} 17. Nf3 {[%emt 0:11:47]} Nf6 {[%emt 0:04:25]} 18. Kg2 {[%emt 0:02:46]} Nc4 {[%emt 0:00:48]} 19. Rab1 {[%emt 0:07:45]} Qa5 {[%emt 0:08:38]} 20. Ne5 {[%emt 0:03:20]} Nxe5 {[%emt 0:01:06]} 21. Bxe5 {[%emt 0:02:34]} Nd7 {[%emt 0:01:31]} 22. Bg3 {[%emt 0:02:47]} Nb6 {[%emt 0:02:45]} 23. h4 {[%emt 0:00:37]} f6 {[%emt 0:02:06]} 24. f4 {[%emt 0:14:19]} Nc4 {[%emt 0:02:01]} 25. Be1 {[%emt 0:00:18]} Qb6 {[%emt 0:00:35]} 26. b3 {[%emt 0:03:43]} Na3 {[%emt 0:01:09]} 27. Rb2 {[%emt 0:00:20]} Bb4 {[%emt 0:01:07]} 28. Na4 {[%emt 0:01:02]} Rxc1 {[%emt 0:00:50]} 29. Nxb6 {[%emt 0:00:45]} Rxe1 {[%emt 0:00:02]} 30. Qf3 {[%emt 0:02:06]} axb6 {[%emt 0:00:02]} 31. g5 {[%emt 0:02:02]} fxg5 {[%emt 0:02:26]} 32. hxg5 {[%emt 0:01:25]} h5 {[%emt 0:00:43]} 33. g6 {[%emt 0:01:18]} Be7 {[%emt 0:00:02]} 34. Qxh5 {[%emt 0:02:52]} Bf6 {[%emt 0:00:02]} 35. Qh3 {[%emt 0:00:20]} Bd7 {[%emt 0:00:48]} 36. f5 {[%emt 0:02:29]} exf5 {[%emt 0:00:19]} 37. Qg3 {[%emt 0:00:33]} Rd1 {[%emt 0:01:00]} 38. Be2 {[%emt 0:00:17]} Rc1 {[%emt 0:00:26]} 39. Qd6 {[%emt 0:00:11]} Nc2 {[%emt 0:00:38]} 40. Qxd5+ {[%emt 0:01:23]} Kh8 {[%emt 0:00:06]} 41. Kh2 {[%emt 0:30:36]} Bc6 {[%emt 0:05:25]} 42. Qxf5 {[%emt 0:00:00]} Rh1+ {[%emt 0:00:40]} 43. Kg3 {[%emt 0:00:00]} Nxe3 {[%emt 0:02:51]} 44. Qe6 {[%emt 0:00:00]} Bh4+ {[%emt 0:03:07]} 45. Kf4 {[%emt 0:00:00]} Nd5+ {[%emt 0:00:30]} 46. Ke5 {[%emt 0:00:00]} Bf6+ {[%emt 0:00:57]} 47. Ke4 {[%emt 0:00:00]} Nc7+ {[%emt 0:00:26]} 0-1

[Event "NOR-ch Various 2019"]
[Site "Larvik"]
[Date "2019.07.10"]
[Round "6.29"]
[White "Laverton, Christian"]
[Black "Andersen, Lars Even"]
[Result "0-1"]
[ECO "D12"]
[WhiteElo "2115"]
[BlackElo "2314"]
[Annotator "NA"]
[PlyCount "95"]
[EventDate "2019.07.06"]
[EventType "swiss"]
[EventCountry "NOR"]
[SourceTitle "playchess.com"]
[Source "ChessBase"]
[SourceQuality "1"]
[TimeControl "40/5400+30:1800+30"]

1. d4 {[%emt 0:00:00]} Nf6 {[%emt 0:00:29]} 2. Nf3 {[%emt 0:00:03]} d5 {[%emt 0:00:24]} 3. c4 {[%emt 0:00:43]} c6 {[%emt 0:04:15]} 4. e3 {[%emt 0:01:03]} Bf5 {[%emt 0:04:40]} 5. Nc3 {[%emt 0:02:17]} e6 {[%emt 0:01:35]} 6. Nh4 {[%emt 0:01:45]} Bg4 {[%emt 0:01:13]} 7. Qb3 {[%emt 0:01:50]} Qb6 {[%emt 0:07:45]} 8. h3 {[%emt 0:03:59]} Bh5 {[%emt 0:00:20]} 9. g4 {[%emt 0:02:16]} Bg6 {[%emt 0:00:04]} 10. Nxg6 {[%emt 0:00:47]} hxg6 {[%emt 0:00:15]} 11. Bg2 {[%emt 0:01:08]} Na6 {[%emt 0:14:34]} 12. Bd2 {[%emt 0:12:06]} O-O-O {[%emt 0:16:11]} 13. cxd5 {[%emt 0:08:58]} exd5 {[%emt 0:05:12]} 14. Qxb6 {[%emt 0:09:18]} axb6 {[%emt 0:01:31]} 15. Rc1 {[%emt 0:01:34]} Nc7 {[%emt 0:09:14]} 16. O-O {[%emt 0:11:15]} Kb8 {[%emt 0:05:45]} 17. Rfd1 {[%emt 0:03:30]} Ne6 {[%emt 0:03:18]} 18. f4 {[%emt 0:02:55]} Nc7 {[%emt 0:05:09]} 19. Be1 {[%emt 0:02:39]} Re8 {[%emt 0:08:58]} 20. Rd3 {[%emt 0:05:26]} b5 {[%emt 0:00:58]} 21. g5 {[%emt 0:02:26]} Ng8 {[%emt 0:07:01]} 22. a4 {[%emt 0:02:33]} bxa4 {[%emt 0:00:21]} 23. Nxa4 {[%emt 0:00:59]} Ne7 {[%emt 0:00:52]} 24. Nb6 {[%emt 0:02:52]} Nf5 {[%emt 0:00:32]} 25. Nd7+ {[%emt 0:03:20]} Kc8 {[%emt 0:00:04]} 26. Ne5 {[%emt 0:00:30]} Nd6 {[%emt 0:00:30]} 27. Rb3 {[%emt 0:03:27]} Be7 {[%emt 0:00:38]} 28. Ba5 {[%emt 0:00:23]} Ncb5 {[%emt 0:01:35]} 29. Bf3 {[%emt 0:02:20]} Bd8 {[%emt 0:00:32]} 30. Bg4+ {[%emt 0:01:05]} Kb8 {[%emt 0:00:01]} 31. Nd7+ {[%emt 0:02:06]} Kc8 {[%emt 0:00:26]} 32. Nf6+ {[%emt 0:06:01]} Re6 {[%emt 0:00:18]} 33. Bxe6+ {[%emt 0:00:38]} fxe6 {[%emt 0:00:08]} 34. Bxd8 {[%emt 0:00:16]} Kxd8 {[%emt 0:01:05]} 35. Ng4 {[%emt 0:00:17]} Rxh3 {[%emt 0:00:28]} 36. Kg2 {[%emt 0:01:04]} Nxd4 {[%emt 0:01:02]} 37. Kxh3 {[%emt 0:01:33]} Nxb3 {[%emt 0:00:06]} 38. Rc3 {[%emt 0:00:39]} Nd2 {[%emt 0:00:18]} 39. Ne5 {[%emt 0:00:42]} N2c4 {[%emt 0:00:46]} 40. Nxg6 {[%emt 0:01:38]} Nxb2 {[%emt 0:00:29]} 41. Ne5 {[%emt 0:06:34]} Nbc4 {[%emt 0:01:23]} 42. Nxc4 {[%emt 0:11:03]} dxc4 {[%emt 0:01:08]} 43. Kg4 {[%emt 0:00:40]} b5 {[%emt 0:00:24]} 44. Kf3 {[%emt 0:00:51]} b4 {[%emt 0:03:01]} 45. Rc1 {[%emt 0:00:27]} b3 {[%emt 0:04:52]} 46. Ke2 {[%emt 0:02:03]} Ne4 {[%emt 0:06:09]} 47. Rd1+ {[%emt 0:07:23]} Ke7 {[%emt 0:03:39]} 48. Ke1 {[%emt 0:00:16]} 0-1

[Event "NOR-ch Various 2019"]
[Site "Larvik"]
[Date "2019.07.10"]
[Round "6.30"]
[White "Hole, Oystein"]
[Black "Fossan, Aleksander"]
[Result "1/2-1/2"]
[ECO "B38"]
[WhiteElo "2293"]
[BlackElo "2155"]
[Annotator "NA"]
[PlyCount "51"]
[EventDate "2019.07.06"]
[EventType "swiss"]
[EventCountry "NOR"]
[SourceTitle "playchess.com"]
[Source "ChessBase"]
[SourceQuality "1"]
[TimeControl "40/5400+30:1800+30"]

1. Nf3 {[%emt 0:02:14]} c5 {[%emt 0:00:00]} 2. c4 {[%emt 0:00:07]} g6 {[%emt 0:00:00]} 3. e4 {[%emt 0:01:30]} Nc6 {[%emt 0:01:18]} 4. d4 {[%emt 0:00:15]} cxd4 {[%emt 0:00:06]} 5. Nxd4 {[%emt 0:00:07]} Bg7 {[%emt 0:01:59]} 6. Be3 {[%emt 0:00:13]} d6 {[%emt 0:00:28]} 7. Nc3 {[%emt 0:00:18]} Nf6 {[%emt 0:00:09]} 8. Be2 {[%emt 0:00:07]} O-O {[%emt 0:00:12]} 9. Qd2 {[%emt 0:00:09]} Bd7 {[%emt 0:00:54]} 10. f3 {[%emt 0:00:19]} Nxd4 {[%emt 0:00:42]} 11. Bxd4 {[%emt 0:00:12]} a5 {[%emt 0:02:08]} 12. O-O {[%emt 0:03:26]} Bc6 {[%emt 0:00:16]} 13. b3 {[%emt 0:04:39]} Nd7 {[%emt 0:00:08]} 14. Bf2 {[%emt 0:01:24]} Nc5 {[%emt 0:01:10]} 15. Rac1 {[%emt 0:05:22]} Qb6 {[%emt 0:11:52]} 16. Rc2 {[%emt 0:01:53]} Rfc8 {[%emt 0:02:25]} 17. Rb1 {[%emt 0:00:14]} Qd8 {[%emt 0:03:29]} 18. a3 {[%emt 0:00:54]} h5 {[%emt 0:04:27]} 19. b4 {[%emt 0:02:15]} axb4 {[%emt 0:00:07]} 20. axb4 {[%emt 0:00:07]} Na4 {[%emt 0:00:35]} 21. Nxa4 {[%emt 0:01:47]} Rxa4 {[%emt 0:00:36]} 22. Ra2 {[%emt 0:11:39]} Bc3 {[%emt 0:05:29]} 23. Qc2 {[%emt 0:02:58]} Rxb4 {[%emt 0:00:17]} 24. Rd1 {[%emt 0:00:27]} Bg7 {[%emt 0:05:14]} 25. Be1 {[%emt 0:06:55]} Qb6+ {[%emt 0:02:00]} 26. Bf2 {[%emt 0:00:09]} 1/2-1/2

[Event "NOR-ch Various 2019"]
[Site "Larvik"]
[Date "2019.07.10"]
[Round "6.31"]
[White "Martinsen, Stig K"]
[Black "Demac, Elias"]
[Result "1/2-1/2"]
[ECO "D23"]
[WhiteElo "2177"]
[BlackElo "2215"]
[Annotator "NA"]
[PlyCount "82"]
[EventDate "2019.07.06"]
[EventType "swiss"]
[EventCountry "NOR"]
[SourceTitle "playchess.com"]
[Source "ChessBase"]
[SourceQuality "1"]
[TimeControl "40/5400+30:1800+30"]

1. d4 {[%emt 0:10:12]} d5 {[%emt 0:01:00]} 2. c4 {[%emt 0:00:56]} c6 {[%emt 0:00:05]} 3. Nf3 {[%emt 0:00:18]} Nf6 {[%emt 0:00:05]} 4. Qb3 {[%emt 0:00:42]} dxc4 {[%emt 0:00:08]} 5. Qxc4 {[%emt 0:00:05]} Bg4 {[%emt 0:00:12]} 6. Nbd2 {[%emt 0:01:30]} Nbd7 {[%emt 0:00:29]} 7. g3 {[%emt 0:05:13]} e6 {[%emt 0:01:55]} 8. Bg2 {[%emt 0:01:54]} Be7 {[%emt 0:00:21]} 9. O-O {[%emt 0:01:53]} O-O {[%emt 0:00:07]} 10. b3 {[%emt 0:11:55]} Qa5 {[%emt 0:03:38]} 11. h3 {[%emt 0:13:52]} Bh5 {[%emt 0:10:36]} 12. Bb2 {[%emt 0:06:18]} Rac8 {[%emt 0:03:09]} 13. a3 {[%emt 0:02:56]} c5 {[%emt 0:10:16]} 14. dxc5 {[%emt 0:05:37]} Rxc5 {[%emt 0:04:58]} 15. Qd3 {[%emt 0:04:51]} Bg6 {[%emt 0:06:01]} 16. e4 {[%emt 0:02:09]} Rc7 {[%emt 0:08:45]} 17. b4 {[%emt 0:12:36]} Qa4 {[%emt 0:04:36]} 18. Rfc1 {[%emt 0:03:21]} Rfc8 {[%emt 0:02:06]} 19. Rxc7 {[%emt 0:00:24]} Rxc7 {[%emt 0:00:04]} 20. Nd4 {[%emt 0:01:22]} Nb6 {[%emt 0:10:39]} 21. N4b3 {[%emt 0:05:12]} Qd7 {[%emt 0:04:53]} 22. Qxd7 {[%emt 0:00:46]} Nfxd7 {[%emt 0:00:34]} 23. Rc1 {[%emt 0:01:48]} Rxc1+ {[%emt 0:00:59]} 24. Nxc1 {[%emt 0:00:35]} e5 {[%emt 0:01:35]} 25. Nd3 {[%emt 0:02:03]} f6 {[%emt 0:00:57]} 26. f4 {[%emt 0:01:05]} Bd6 {[%emt 0:01:12]} 27. Kf2 {[%emt 0:01:20]} Bf7 {[%emt 0:01:37]} 28. Ke3 {[%emt 0:00:56]} Kf8 {[%emt 0:00:40]} 29. Bf3 {[%emt 0:00:40]} Ke7 {[%emt 0:01:46]} 30. Bd1 {[%emt 0:00:58]} Nc4+ {[%emt 0:00:55]} 31. Nxc4 {[%emt 0:00:05]} Bxc4 {[%emt 0:00:04]} 32. Bc2 {[%emt 0:01:31]} exf4+ {[%emt 0:03:49]} 33. gxf4 {[%emt 0:00:32]} g5 {[%emt 0:00:38]} 34. fxg5 {[%emt 0:00:37]} fxg5 {[%emt 0:00:05]} 35. Bd1 {[%emt 0:00:37]} Bxd3 {[%emt 0:03:12]} 36. Kxd3 {[%emt 0:00:03]} Be5 {[%emt 0:01:12]} 37. Bc1 {[%emt 0:01:02]} Bf4 {[%emt 0:00:16]} 38. Bb2 {[%emt 0:00:27]} Kd6 {[%emt 0:00:44]} 39. Kc4 {[%emt 0:00:35]} Be5 {[%emt 0:02:22]} 40. Bc1 {[%emt 0:00:28]} h6 {[%emt 0:00:30]} 41. Be3 {[%emt 0:03:33]} a6 {[%emt 0:01:01]} 1/2-1/2

[Event "NOR-ch Various 2019"]
[Site "Larvik"]
[Date "2019.07.10"]
[Round "6.32"]
[White "Holleland, Sigve"]
[Black "Lund, Gunnar"]
[Result "1-0"]
[ECO "B09"]
[WhiteElo "2092"]
[BlackElo "2285"]
[Annotator "NA"]
[PlyCount "119"]
[EventDate "2019.07.06"]
[EventType "swiss"]
[EventCountry "NOR"]
[SourceTitle "playchess.com"]
[Source "ChessBase"]
[SourceQuality "1"]
[TimeControl "40/5400+30:1800+30"]

1. d4 {[%emt 0:00:19]} d6 {[%emt 0:00:00]} 2. e4 {[%emt 0:00:28]} g6 {[%emt 0:00:16]} 3. f4 {[%emt 0:00:43]} Bg7 {[%emt 0:01:31]} 4. Nc3 {[%emt 0:01:16]} Nf6 {[%emt 0:12:05]} 5. Nf3 {[%emt 0:00:56]} c5 {[%emt 0:00:07]} 6. e5 {[%emt 0:09:46]} Ng4 {[%emt 0:01:57]} 7. dxc5 {[%emt 0:08:11]} O-O {[%emt 0:09:05]} 8. h3 {[%emt 0:03:07]} Nh6 {[%emt 0:02:13]} 9. cxd6 {[%emt 0:00:58]} exd6 {[%emt 0:29:34]} 10. Qxd6 {[%emt 0:01:06]} Qxd6 {[%emt 0:00:45]} 11. exd6 {[%emt 0:00:05]} Nf5 {[%emt 0:08:42]} 12. Nd5 {[%emt 0:02:17]} Nc6 {[%emt 0:00:00]} 13. Bb5 {[%emt 0:09:04]} Bd7 {[%emt 0:00:00]} 14. O-O {[%emt 0:08:33]} Nxd6 {[%emt 0:00:00]} 15. Bxc6 {[%emt 0:00:45]} Bxc6 {[%emt 0:00:00]} 16. Ne7+ {[%emt 0:00:39]} Kh8 {[%emt 0:00:00]} 17. Nxc6 {[%emt 0:00:13]} bxc6 {[%emt 0:00:00]} 18. Rd1 {[%emt 0:03:28]} Nc4 {[%emt 0:00:00]} 19. Rb1 {[%emt 0:02:32]} Rad8 {[%emt 0:01:18]} 20. Rd3 {[%emt 0:05:53]} Rfe8 {[%emt 0:02:40]} 21. Kf2 {[%emt 0:01:12]} Nd6 {[%emt 0:00:50]} 22. Nd2 {[%emt 0:05:02]} c5 {[%emt 0:07:55]} 23. b3 {[%emt 0:06:51]} Bd4+ {[%emt 0:01:57]} 24. Kf1 {[%emt 0:04:58]} Be3 {[%emt 0:15:36]} 25. Nf3 {[%emt 0:03:42]} Nf5 {[%emt 0:02:38]} 26. g4 {[%emt 0:03:16]} Rxd3 {[%emt 0:01:33]} 27. cxd3 {[%emt 0:00:32]} Nd4 {[%emt 0:00:56]} 28. Ne5 {[%emt 0:02:00]} f6 {[%emt 0:00:13]} 29. Bxe3 {[%emt 0:00:57]} fxe5 {[%emt 0:00:01]} 30. Bxd4 {[%emt 0:01:55]} cxd4 {[%emt 0:01:07]} 31. Re1 {[%emt 0:01:40]} Rf8 {[%emt 0:00:21]} 32. Rxe5 {[%emt 0:00:07]} Rxf4+ {[%emt 0:00:04]} 33. Ke2 {[%emt 0:00:12]} Rf7 {[%emt 0:00:15]} 34. Re4 {[%emt 0:03:07]} Rd7 {[%emt 0:00:17]} 35. Kf3 {[%emt 0:00:28]} Kg7 {[%emt 0:00:26]} 36. Rf4 {[%emt 0:01:44]} g5 {[%emt 0:00:23]} 37. Rf5 {[%emt 0:01:02]} Kg6 {[%emt 0:00:02]} 38. Ke4 {[%emt 0:00:40]} h5 {[%emt 0:00:30]} 39. Rd5 {[%emt 0:01:06]} Rf7 {[%emt 0:00:28]} 40. Rd6+ {[%emt 0:01:37]} Kh7 {[%emt 0:00:02]} 41. gxh5 {[%emt 0:31:22]} Rf4+ {[%emt 0:30:11]} 42. Ke5 {[%emt 0:00:10]} Rh4 {[%emt 0:00:36]} 43. Rxd4 {[%emt 0:00:49]} Rxh3 {[%emt 0:00:04]} 44. Rd6 {[%emt 0:02:12]} Rxh5 {[%emt 0:00:26]} 45. Kf5 {[%emt 0:00:20]} Rh2 {[%emt 0:00:05]} 46. Ra6 {[%emt 0:04:02]} Rd2 {[%emt 0:00:39]} 47. Kxg5 {[%emt 0:00:15]} Rxd3 {[%emt 0:00:14]} 48. Rxa7+ {[%emt 0:00:06]} Kg8 {[%emt 0:00:04]} 49. Kf6 {[%emt 0:00:56]} Rd6+ {[%emt 0:00:18]} 50. Ke5 {[%emt 0:00:31]} Rd2 {[%emt 0:00:10]} 51. b4 {[%emt 0:00:42]} Kf8 {[%emt 0:00:03]} 52. b5 {[%emt 0:00:40]} Ke8 {[%emt 0:00:04]} 53. a4 {[%emt 0:01:13]} Kd8 {[%emt 0:00:18]} 54. Rh7 {[%emt 0:00:00]} Kc8 {[%emt 0:00:00]} 55. a5 {[%emt 0:00:00]} Kb8 {[%emt 0:00:00]} 56. b6 {[%emt 0:00:00]} Rd8 {[%emt 0:00:00]} 57. Ke6 {[%emt 0:00:00]} Ka8 {[%emt 0:00:00]} 58. Rd7 {[%emt 0:00:00]} Re8+ {[%emt 0:00:00]} 59. Kd6 {[%emt 0:00:00]} Rh8 {[%emt 0:00:00]} 60. Kc6 {[%emt 0:00:00]} 1-0

[Event "NOR-ch Various 2019"]
[Site "Larvik"]
[Date "2019.07.10"]
[Round "6.33"]
[White "Abdrlauf, Elham"]
[Black "Grover, Sigurd Loe"]
[Result "1-0"]
[ECO "D34"]
[WhiteElo "2235"]
[BlackElo "2052"]
[Annotator "NA"]
[PlyCount "83"]
[EventDate "2019.07.06"]
[EventType "swiss"]
[EventCountry "NOR"]
[SourceTitle "playchess.com"]
[Source "ChessBase"]
[SourceQuality "1"]
[TimeControl "40/5400+30:1800+30"]

1. c4 {[%emt 0:00:00]} e6 {[%emt 0:01:09]} 2. d4 {[%emt 0:00:33]} d5 {[%emt 0:00:07]} 3. Nc3 {[%emt 0:00:06]} c5 {[%emt 0:00:06]} 4. cxd5 {[%emt 0:00:05]} exd5 {[%emt 0:00:05]} 5. Nf3 {[%emt 0:00:11]} Nc6 {[%emt 0:00:06]} 6. g3 {[%emt 0:00:42]} Nf6 {[%emt 0:00:09]} 7. Bg2 {[%emt 0:00:05]} Be7 {[%emt 0:00:03]} 8. O-O {[%emt 0:00:10]} O-O {[%emt 0:00:07]} 9. dxc5 {[%emt 0:00:38]} Bxc5 {[%emt 0:00:06]} 10. Bg5 {[%emt 0:00:12]} d4 {[%emt 0:00:12]} 11. Bxf6 {[%emt 0:00:37]} Qxf6 {[%emt 0:00:04]} 12. Ne4 {[%emt 0:00:05]} Qe7 {[%emt 0:00:11]} 13. Nxc5 {[%emt 0:00:02]} Qxc5 {[%emt 0:00:09]} 14. Qd2 {[%emt 0:00:41]} Bg4 {[%emt 0:05:57]} 15. Rac1 {[%emt 0:01:26]} Qb6 {[%emt 0:00:46]} 16. h3 {[%emt 0:02:33]} Bh5 {[%emt 0:03:10]} 17. b3 {[%emt 0:05:33]} Rfe8 {[%emt 0:03:44]} 18. Rfd1 {[%emt 0:03:25]} Rad8 {[%emt 0:03:33]} 19. g4 {[%emt 0:08:34]} Bg6 {[%emt 0:00:07]} 20. Nh4 {[%emt 0:02:01]} Qb5 {[%emt 0:07:44]} 21. Nxg6 {[%emt 0:01:31]} hxg6 {[%emt 0:00:21]} 22. Rc4 {[%emt 0:04:00]} Qe5 {[%emt 0:05:23]} 23. Bf3 {[%emt 0:06:36]} Qe7 {[%emt 0:01:41]} 24. Kg2 {[%emt 0:19:18]} a5 {[%emt 0:13:24]} 25. Qf4 {[%emt 0:02:37]} Rd6 {[%emt 0:05:10]} 26. Rd2 {[%emt 0:10:30]} Red8 {[%emt 0:03:02]} 27. Rdc2 {[%emt 0:18:10]} d3 {[%emt 0:08:03]} 28. Rd2 {[%emt 0:03:41]} Rd4 {[%emt 0:03:26]} 29. Rxd4 {[%emt 0:00:02]} Rxd4 {[%emt 0:00:20]} 30. Qe3 {[%emt 0:03:20]} Qxe3 {[%emt 0:01:34]} 31. fxe3 {[%emt 0:00:02]} dxe2 {[%emt 0:00:15]} 32. Rxe2 {[%emt 0:00:03]} Rb4 {[%emt 0:01:15]} 33. Rc2 {[%emt 0:01:15]} Ne5 {[%emt 0:06:30]} 34. Bd5 {[%emt 0:00:21]} Rb5 {[%emt 0:00:23]} 35. e4 {[%emt 0:00:22]} b6 {[%emt 0:03:53]} 36. Rc8+ {[%emt 0:01:46]} Kh7 {[%emt 0:00:04]} 37. a4 {[%emt 0:03:59]} Rc5 {[%emt 0:06:22]} 38. Rb8 {[%emt 0:00:17]} Rc2+ {[%emt 0:02:28]} 39. Kf1 {[%emt 0:01:10]} Rd2 {[%emt 0:02:08]} 40. Ba8 {[%emt 0:02:47]} Kh6 {[%emt 0:05:17]} 41. h4 {[%emt 0:30:29]} Nxg4 {[%emt 0:30:29]} 42. Rh8# {[%emt 0:00:04] Ne5 Rb8} 1-0

[Event "NOR-ch Various 2019"]
[Site "Larvik"]
[Date "2019.07.10"]
[Round "6.34"]
[White "Aulin-Jansson, Joran"]
[Black "Skotheim, Andreas"]
[Result "1-0"]
[ECO "B23"]
[WhiteElo "2223"]
[BlackElo "2138"]
[Annotator "NA"]
[PlyCount "93"]
[EventDate "2019.07.06"]
[EventType "swiss"]
[EventCountry "NOR"]
[SourceTitle "playchess.com"]
[Source "ChessBase"]
[SourceQuality "1"]
[TimeControl "40/5400+30:1800+30"]

1. e4 {[%emt 0:04:26]} c5 {[%emt 0:00:00]} 2. Nc3 {[%emt 0:00:06]} e6 {[%emt 0:00:10]} 3. f4 {[%emt 0:00:04]} Nc6 {[%emt 0:00:12]} 4. Nf3 {[%emt 0:00:05]} a6 {[%emt 0:00:41]} 5. g3 {[%emt 0:00:08]} d5 {[%emt 0:00:28]} 6. d3 {[%emt 0:00:03]} Nf6 {[%emt 0:00:17]} 7. Bg2 {[%emt 0:00:07]} Be7 {[%emt 0:00:44]} 8. O-O {[%emt 0:00:07]} O-O {[%emt 0:01:06]} 9. h3 {[%emt 0:00:04]} Qc7 {[%emt 0:05:26]} 10. g4 {[%emt 0:01:27]} dxe4 {[%emt 0:12:40]} 11. dxe4 {[%emt 0:03:09]} Rd8 {[%emt 0:08:07]} 12. Qe1 {[%emt 0:00:22]} Nd4 {[%emt 0:01:08]} 13. e5 {[%emt 0:00:40]} Ne8 {[%emt 0:24:57]} 14. Qf2 {[%emt 0:03:27]} Bd7 {[%emt 0:00:54]} 15. Be3 {[%emt 0:01:40]} Bb5 {[%emt 0:04:29]} 16. Nxb5 {[%emt 0:02:29]} axb5 {[%emt 0:00:09]} 17. c3 {[%emt 0:00:14]} Nxf3+ {[%emt 0:00:16]} 18. Qxf3 {[%emt 0:00:25]} Rd7 {[%emt 0:03:25]} 19. a3 {[%emt 0:02:26]} c4 {[%emt 0:01:31]} 20. Qf2 {[%emt 0:04:36]} Rd3 {[%emt 0:00:40]} 21. Bb6 {[%emt 0:00:12]} Qd7 {[%emt 0:00:25]} 22. Bd4 {[%emt 0:03:33]} Rd8 {[%emt 0:02:23]} 23. Rad1 {[%emt 0:04:42]} Rxd1 {[%emt 0:02:35]} 24. Rxd1 {[%emt 0:08:27]} Nc7 {[%emt 0:03:58]} 25. Bxb7 {[%emt 0:02:22]} Nd5 {[%emt 0:03:27]} 26. Bxd5 {[%emt 0:00:06]} Qxd5 {[%emt 0:00:21]} 27. Qg2 {[%emt 0:00:07]} Kf8 {[%emt 0:01:25]} 28. Qxd5 {[%emt 0:00:06]} Rxd5 {[%emt 0:02:54]} 29. Kf2 {[%emt 0:01:46]} Ke8 {[%emt 0:03:04]} 30. Ke3 {[%emt 0:00:06]} Bc5 {[%emt 0:05:05]} 31. Ke4 {[%emt 0:02:43]} Kd7 {[%emt 0:02:37]} 32. Ra1 {[%emt 0:00:53]} Kc6 {[%emt 0:00:54]} 33. a4 {[%emt 0:02:03]} b4 {[%emt 0:00:49]} 34. a5 {[%emt 0:00:39]} Bxd4 {[%emt 0:00:48]} 35. cxd4 {[%emt 0:00:33]} Rd7 {[%emt 0:00:25]} 36. a6 {[%emt 0:00:57]} Ra7 {[%emt 0:01:28]} 37. f5 {[%emt 0:00:06]} Kb6 {[%emt 0:00:52]} 38. fxe6 {[%emt 0:00:32]} fxe6 {[%emt 0:00:05]} 39. d5 {[%emt 0:00:05]} exd5+ {[%emt 0:02:26]} 40. Kxd5 {[%emt 0:00:09]} c3 {[%emt 0:01:43]} 41. bxc3 {[%emt 0:34:17]} bxc3 {[%emt 0:33:39]} 42. Rc1 {[%emt 0:00:06]} Rd7+ {[%emt 0:00:00]} 43. Ke4 {[%emt 0:00:00]} Rc7 {[%emt 0:00:00]} 44. e6 {[%emt 0:00:00]} Kxa6 {[%emt 0:00:00]} 45. Ke5 {[%emt 0:00:00]} Kb5 {[%emt 0:00:00]} 46. Kd6 {[%emt 0:00:00]} Rc8 {[%emt 0:00:00]} 47. e7 {[%emt 0:00:00]} 1-0

[Event "NOR-ch Various 2019"]
[Site "Larvik"]
[Date "2019.07.10"]
[Round "6.35"]
[White "Hagesather, Ellen"]
[Black "Shehzad, Shazil"]
[Result "1-0"]
[ECO "B25"]
[WhiteElo "2193"]
[BlackElo "2088"]
[Annotator "NA"]
[PlyCount "77"]
[EventDate "2019.07.06"]
[EventType "swiss"]
[EventCountry "NOR"]
[SourceTitle "playchess.com"]
[Source "ChessBase"]
[SourceQuality "1"]
[TimeControl "40/5400+30:1800+30"]

1. e4 {[%emt 0:00:00]} c5 {[%emt 0:03:37]} 2. d3 {[%emt 0:01:59]} Nc6 {[%emt 0:00:21]} 3. g3 {[%emt 0:00:27]} g6 {[%emt 0:00:21]} 4. Bg2 {[%emt 0:00:10]} Bg7 {[%emt 0:00:19]} 5. f4 {[%emt 0:00:06]} d6 {[%emt 0:00:16]} 6. Nf3 {[%emt 0:00:09]} e6 {[%emt 0:00:26]} 7. Nc3 {[%emt 0:00:27]} Nge7 {[%emt 0:00:16]} 8. O-O {[%emt 0:00:10]} O-O {[%emt 0:00:07]} 9. Rb1 {[%emt 0:01:31]} Rb8 {[%emt 0:00:33]} 10. Bd2 {[%emt 0:00:43]} b5 {[%emt 0:00:30]} 11. a3 {[%emt 0:00:29]} a5 {[%emt 0:00:22]} 12. a4 {[%emt 0:00:12]} b4 {[%emt 0:00:28]} 13. Nb5 {[%emt 0:00:07]} f5 {[%emt 0:03:52]} 14. Be3 {[%emt 0:05:05]} c4 {[%emt 0:07:58]} 15. exf5 {[%emt 0:09:58]} Nxf5 {[%emt 0:01:18]} 16. Bf2 {[%emt 0:00:05]} c3 {[%emt 0:07:27]} 17. Ng5 {[%emt 0:05:20]} d5 {[%emt 0:06:05]} 18. bxc3 {[%emt 0:02:34]} bxc3 {[%emt 0:01:45]} 19. Re1 {[%emt 0:03:34]} Re8 {[%emt 0:04:33]} 20. Bc5 {[%emt 0:17:38]} h6 {[%emt 0:10:50]} 21. Nf3 {[%emt 0:02:17]} d4 {[%emt 0:08:58]} 22. Nh4 {[%emt 0:02:40]} Qd7 {[%emt 0:06:09]} 23. Nxf5 {[%emt 0:01:48]} gxf5 {[%emt 0:05:07]} 24. Nd6 {[%emt 0:03:57]} Rd8 {[%emt 0:07:56]} 25. Nxc8 {[%emt 0:08:22]} Rbxc8 {[%emt 0:02:39]} 26. Rb5 {[%emt 0:01:51]} e5 {[%emt 0:06:08]} 27. fxe5 {[%emt 0:02:23]} Nxe5 {[%emt 0:01:25]} 28. Bb6 {[%emt 0:00:10]} Re8 {[%emt 0:00:07]} 29. h3 {[%emt 0:08:07]} Qd6 {[%emt 0:01:42]} 30. Rf1 {[%emt 0:10:49]} Qg6 {[%emt 0:02:40]} 31. Kh2 {[%emt 0:01:29]} h5 {[%emt 0:03:16]} 32. Rf4 {[%emt 0:02:45]} Bh6 {[%emt 0:02:22]} 33. Rh4 {[%emt 0:02:07]} f4 {[%emt 0:01:24]} 34. gxf4 {[%emt 0:00:55]} Ng4+ {[%emt 0:00:59]} 35. hxg4 {[%emt 0:01:56]} Bxf4+ {[%emt 0:00:05]} 36. Kg1 {[%emt 0:01:54]} Bg3 {[%emt 0:00:30]} 37. Bd5+ {[%emt 0:01:43]} Kg7 {[%emt 0:02:24]} 38. Bxd4+ {[%emt 0:00:05]} Be5 {[%emt 0:00:28]} 39. Rb7+ {[%emt 0:00:28]} 1-0